fUSD/lending_fUSD_20241210
["ID","MTS","AMOUNT","RATE_DAILY","PERIOD"]
[344839149,1733827839771,-156.641536,0.00010958,2]
[344839150,1733827839780,-156.641536,0.00010958,2]
[344839151,1733827839790,-156.641536,0.00010958,2]
[344839152,1733827839800,-164.832464,0.00010958,2]
[344839153,1733827839810,-164.832464,0.00010958,2]
[344839154,1733827839820,-164.832464,0.00010958,2]
[344839155,1733827839829,-164.832464,0.00010958,2]
[344839156,1733827839839,-164.832464,0.00010958,2]
[344839157,1733827839848,-2132.77,0.00010958,2]
[344839158,1733827839857,-500.0,0.00010958,2]
[344839159,1733827839866,-164.832464,0.00010958,2]
[344839160,1733827839875,-518.27554984,0.00010958,2]
[344839161,1733827839884,-500.0,0.00010958,2]
[344839162,1733827839893,-500.0,0.00010958,2]
[344839163,1733827839903,-1303.55,0.00010958,2]
[344839164,1733827839914,-709.12,0.00010958,2]
[344839165,1733827839923,-500.0,0.00010958,2]
[344839166,1733827839932,-501.52880769,0.00010958,2]
[344839167,1733827839942,-505.43326758,0.00010958,2]
[344839168,1733827839953,-500.0,0.00010958,2]
[344839169,1733827839963,-500.0,0.00010958,2]
[344839170,1733827839972,-549.46,0.00010958,2]
[344839171,1733827839981,-500.0,0.00010958,2]
[344839172,1733827839991,-500.0,0.00010958,2]
[344839173,1733827840000,-6538.21,0.00010958,2]
[344839174,1733827840010,-500.0,0.00010958,2]
[344839175,1733827840019,-500.0,0.00010958,2]
[344839176,1733827840028,-500.0,0.00010958,2]
[344839177,1733827840038,-159.791776,0.00010958,2]
[344839178,1733827840047,-7500.0,0.00010958,2]
[344839179,1733827840056,-500.0,0.00010958,2]
[344839180,1733827840069,-500.0,0.00010958,2]
[344839181,1733827840078,-500.0,0.00010958,2]
[344839182,1733827840087,-500.0,0.00010958,2]
[344839183,1733827840097,-500.0,0.00010958,2]
[344839184,1733827840106,-577.15,0.00010958,2]
[344839185,1733827840115,-529.81,0.00010958,2]
[344839186,1733827840124,-503.13448654,0.00010958,2]
[344839187,1733827840133,-500.0,0.00010958,2]
[344839188,1733827840143,-21699.0,0.00010959,2]
[344839189,1733827840152,-42697.0,0.00010959,2]
[344839190,1733827840161,-24390.0,0.00010959,2]
[344839191,1733827840171,-151.0,0.00010959,2]
[344839192,1733827840180,-151.0,0.00010959,2]
[344839193,1733827840189,-983.56380887,0.00010967,2]
[344839194,1733827840199,-804.76054706,0.00010968,2]
[344839195,1733827840209,-1234.90865488,0.00010968,2]
[344839196,1733827840218,-525.07927058,0.00010968,2]
[344839197,1733827840227,-7883.27216907,0.00010968,2]
[344839198,1733827840237,-327.85460295,0.00010968,2]
[344839199,1733827840246,-10807.01322082,0.00010968,2]
[344839200,1733827840256,-50751.36082861,0.00010968,2]
[344839202,1733827840266,-1754.24463101,0.00010969,2]
[344839204,1733827840275,-75532.29873321,0.00010969,2]
[344839206,1733827840284,-330.15817312,0.00010969,2]
[344839208,1733827840294,-582.85262745,0.00010969,2]
[344839209,1733827840304,-52188.65522713,0.0001097,2]
[344839210,1733827840313,-262.53963529,0.0001097,2]
[344839211,1733827840323,-118799.81631469,0.0001097,2]
[344839212,1733827840332,-1754.24463101,0.00010971,2]
[344839213,1733827840341,-8381.39101495,0.00010971,2]
[344839214,1733827840351,-262.53963529,0.00010971,2]
[344839215,1733827840360,-7392.37243692,0.00010971,2]
[344839216,1733827840370,-10807.01322082,0.00010971,2]
[344839217,1733827840379,-50751.36082861,0.00010971,2]
[344839218,1733827840389,-466.73712941,0.00010971,2]
[344839219,1733827840398,-330.15817312,0.00010972,2]
[344839220,1733827840408,-3302.83155562,0.00010972,2]
[344839221,1733827840418,-118799.81631469,0.00010972,2]
[344839222,1733827840427,-7883.27216907,0.00010972,2]
[344839223,1733827840437,-75532.29873321,0.00010973,2]
[344839224,1733827840447,-500.0,0.00010973,2]
[344839225,1733827840456,-500.0,0.00010973,2]
[344839226,1733827840465,-202.03001474,0.00010973,2]
[344839227,1733827840474,-500.0,0.00010973,2]
[344839228,1733827840484,-159.791776,0.00010973,2]
[344839229,1733827840493,-163.59285226,0.00010973,2]
[344839230,1733827840502,-501.02234171,0.00010973,2]
[344839231,1733827840512,-311.02613995,0.00010973,2]
[344839232,1733827840521,-500.0,0.00010973,2]
[344839233,1733827840530,-203.63870392,0.00010973,2]
[344839234,1733827840541,-161.09890169,0.00010973,2]
[344839235,1733827840552,-159.86240294,0.00010973,2]
[344839236,1733827840561,-327.85460295,0.00010973,2]
[344839237,1733827840571,-1348.14587363,0.00010973,2]
[344839238,1733827840580,-52188.65522713,0.00010973,2]
[344839239,1733827840591,-32116.09552436,0.00010973,2]
[344839240,1733827840600,-1687.84406699,0.00010973,2]
[344839241,1733827840610,-1687.84406699,0.00010973,2]
[344839242,1733827840620,-161.12844201,0.00010974,2]
[344839243,1733827840630,-15708.79142846,0.00010974,2]
[344839244,1733827840639,-816.78997644,0.00010974,2]
[344839245,1733827840649,-983.56380887,0.00010974,2]
[344839246,1733827840659,-3302.83155562,0.00010974,2]
[344839247,1733827840668,-983.56380887,0.00010974,2]
[344839248,1733827840677,-2902.1203742,0.00010974,2]
[344839249,1733827840687,-466.73712941,0.00010975,2]
[344839250,1733827840696,-1687.84406699,0.00010975,2]
[344839251,1733827840707,-8381.39101495,0.00010975,2]
[344839252,1733827840717,-118799.81631469,0.00010975,2]
[344839253,1733827840726,-7392.37243692,0.00010975,2]
[344839254,1733827840736,-262.53963529,0.00010976,2]
[344839255,1733827840745,-1244.63234508,0.00010976,2]
[344839256,1733827840755,-7392.37243692,0.00010976,2]
[344839257,1733827840766,-10807.01322082,0.00010976,2]
[344839258,1733827840776,-1234.90865488,0.00010976,2]
[344839259,1733827840785,-804.76054706,0.00010976,2]
[344839260,1733827840795,-1234.90865488,0.00010977,2]
[344839261,1733827840805,-49958.37081566,0.00010977,2]
[344839262,1733827840814,-50751.36082861,0.00010977,2]
[344839263,1733827840824,-1348.14587363,0.00010977,2]
[344839264,1733827840833,-262.53963529,0.00010977,2]
[344839265,1733827840843,-1348.14587363,0.00010977,2]
[344839266,1733827840855,-32116.09552436,0.00010978,2]
[344839267,1733827840870,-8381.39101495,0.00010978,2]
[344839268,1733827840880,-1057.45130886,0.00010978,2]
[344839269,1733827840890,-1057.45130886,0.00010978,2]
[344839270,1733827840899,-466.73712941,0.00010978,2]
[344839271,1733827840909,-582.85262745,0.00010978,2]
[344839272,1733827840918,-200.0,0.00010978,2]
[344839273,1733827840927,-118799.81631469,0.00010979,2]
[344839274,1733827840936,-49958.37081566,0.00010979,2]
[344839275,1733827840946,-804.76054706,0.0001098,2]
[344839276,1733827840960,-32116.09552436,0.0001098,2]
[344839277,1733827840972,-1244.63234508,0.0001098,2]
[344839278,1733827840982,-10807.01322082,0.0001098,2]
[344839279,1733827840991,-2195.86323422,0.0001098,2]
[344839280,1733827841001,-2195.86323422,0.0001098,2]
[344839281,1733827841010,-2195.86323422,0.0001098,2]
[344839282,1733827841019,-24087.07164327,0.0001098,2]
[344839283,1733827841029,-804.76054706,0.0001098,2]
[344839284,1733827841038,-24087.07164327,0.0001098,2]
[344839285,1733827841047,-24087.07164327,0.0001098,2]
[344839286,1733827841058,-7392.37243692,0.0001098,2]
[344839287,1733827841067,-1244.63234508,0.00010981,2]
[344839288,1733827841076,-2902.1203742,0.00010981,2]
[344839289,1733827841085,-7883.27216907,0.00010981,2]
[344839290,1733827841095,-15708.79142846,0.00010981,2]
[344839291,1733827841104,-3302.83155562,0.00010981,2]
[344839292,1733827841114,-52188.65522713,0.00010982,2]
[344839293,1733827841123,-330.15817312,0.00010982,2]
[344839294,1733827841133,-1348.14587363,0.00010982,2]
[344839295,1733827841142,-466.73712941,0.00010982,2]
[344839296,1733827841151,-1754.24463101,0.00010982,2]
[344839297,1733827841160,-32116.09552436,0.00010983,2]
[344839298,1733827841170,-1057.45130886,0.00010983,2]
[344839299,1733827841179,-1687.84406699,0.00010983,2]
[344839300,1733827841188,-79299.00129471,0.00010983,2]
[344839301,1733827841200,-15708.79142846,0.00010983,2]
[344839302,1733827841210,-525.07927058,0.00010983,2]
[344839303,1733827841219,-15708.79142846,0.00010983,2]
[344839304,1733827841229,-1348.14587363,0.00010983,2]
[344839305,1733827841238,-8381.39101495,0.00010984,2]
[344839306,1733827841247,-79299.00129471,0.00010984,2]
[344839307,1733827841257,-1234.90865488,0.00010984,2]
[344839308,1733827841266,-1754.24463101,0.00010984,2]
[344839309,1733827841275,-816.78997644,0.00010984,2]
[344839310,1733827841284,-50751.36082861,0.00010984,2]
[344839311,1733827841293,-10807.01322082,0.00010984,2]
[344839312,1733827841302,-327.85460295,0.00010984,2]
[344839313,1733827841311,-816.78997644,0.00010984,2]
[344839314,1733827841321,-262.53963529,0.00010985,2]
[344839315,1733827841330,-466.73712941,0.00010985,2]
[344839316,1733827841339,-75532.29873321,0.00010985,2]
[344839317,1733827841348,-10807.01322082,0.00010986,2]
[344839318,1733827841357,-1244.63234508,0.00010986,2]
[344839319,1733827841367,-804.76054706,0.00010987,2]
[344839320,1733827841376,-7883.27216907,0.00010987,2]
[344839321,1733827841386,-200.0,0.00010987,2]
[344839322,1733827841395,-330.15817312,0.00010987,2]
[344839323,1733827841404,-118799.81631469,0.00010987,2]
[344839324,1733827841414,-50751.36082861,0.00010987,2]
[344839325,1733827841422,-50751.36082861,0.00010987,2]
[344839326,1733827841432,-200.0,0.00010987,2]
[344839327,1733827841440,-816.78997644,0.00010988,2]
[344839328,1733827841451,-1687.84406699,0.00010988,2]
[344839329,1733827841460,-7392.37243692,0.00010988,2]
[344839330,1733827841469,-79299.00129471,0.00010988,2]
[344839331,1733827841478,-582.85262745,0.00010988,2]
[344839332,1733827841487,-7392.37243692,0.00010988,2]
[344839333,1733827841496,-327.85460295,0.00010988,2]
[344839334,1733827841505,-327.85460295,0.00010988,2]
[344839335,1733827841514,-3302.83155562,0.00010988,2]
[344839336,1733827841523,-7392.37243692,0.00010988,2]
[344839337,1733827841532,-983.56380887,0.00010989,2]
[344839338,1733827841544,-525.07927058,0.00010989,2]
[344839339,1733827841553,-15708.79142846,0.00010989,2]
[344839340,1733827841562,-816.78997644,0.00010989,2]
[344839341,1733827841572,-49958.37081566,0.00010989,2]
[344839342,1733827841583,-1057.45130886,0.00010989,2]
[344839343,1733827841592,-49958.37081566,0.00010989,2]
[344839344,1733827841602,-118799.81631469,0.00010989,2]
[344839345,1733827841613,-2902.1203742,0.00010989,2]
[344839346,1733827841624,-2145.43085546,0.0001099,2]
[344839347,1733827841634,-1057.45130886,0.0001099,2]
[344839348,1733827841644,-75532.29873321,0.00010991,2]
[344839349,1733827841654,-200.0,0.00010991,2]
[344839350,1733827841663,-262.53963529,0.00010991,2]
[344839351,1733827841673,-2902.1203742,0.00010991,2]
[344839352,1733827841682,-525.07927058,0.00010992,2]
[344839353,1733827841692,-983.56380887,0.00010992,2]
[344839354,1733827841704,-24087.07164327,0.00010992,2]
[344839355,1733827841713,-2902.1203742,0.00010992,2]
[344839356,1733827841723,-466.73712941,0.00010992,2]
[344839357,1733827841733,-7392.37243692,0.00010992,2]
[344839358,1733827841743,-15708.79142846,0.00010992,2]
[344839359,1733827841752,-983.56380887,0.00010992,2]
[344839360,1733827841762,-24087.07164327,0.00010992,2]
[344839361,1733827841771,-525.07927058,0.00010993,2]
[344839362,1733827841781,-582.85262745,0.00010993,2]
[344839363,1733827841791,-79299.00129471,0.00010993,2]
[344839364,1733827841800,-582.85262745,0.00010993,2]
[344839365,1733827841809,-3302.83155562,0.00010994,2]
[344839366,1733827841820,-7392.37243692,0.00010994,2]
[344839367,1733827841830,-8381.39101495,0.00010994,2]
[344839368,1733827841839,-52188.65522713,0.00010994,2]
[344839369,1733827841848,-1244.63234508,0.00010995,2]
[344839370,1733827841857,-1057.45130886,0.00010995,2]
[344839371,1733827841866,-500.0,0.00010995,2]
[344839372,1733827841875,-380.49864333,0.00010995,2]
[344839373,1733827841885,-500.0,0.00010995,2]
[344839374,1733827841894,-626.31844819,0.00010995,2]
[344839375,1733827841905,-500.0,0.00010995,2]
[344839376,1733827841915,-500.0,0.00010995,2]
[344839377,1733827841925,-500.0,0.00010995,2]
[344839378,1733827841939,-500.0,0.00010995,2]
[344839379,1733827841950,-500.0,0.00010995,2]
[344839380,1733827841959,-500.0,0.00010995,2]
[344839381,1733827841968,-600.62,0.00010995,2]
[344839382,1733827841978,-500.0,0.00010995,2]
[344839383,1733827841987,-500.0,0.00010995,2]
[344839384,1733827841996,-500.0,0.00010995,2]
[344839385,1733827842005,-500.0,0.00010995,2]
[344839386,1733827842015,-500.0,0.00010995,2]
[344839387,1733827842024,-408.8,0.00010995,2]
[344839388,1733827842034,-500.0,0.00010995,2]
[344839389,1733827842044,-500.0,0.00010995,2]
[344839390,1733827842054,-500.0,0.00010995,2]
[344839391,1733827842065,-500.0,0.00010995,2]
[344839392,1733827842074,-500.0,0.00010995,2]
[344839393,1733827842083,-500.0,0.00010995,2]
[344839394,1733827842093,-500.0,0.00010995,2]
[344839395,1733827842103,-500.0,0.00010995,2]
[344839396,1733827842112,-500.0,0.00010995,2]
[344839397,1733827842122,-500.0,0.00010995,2]
[344839398,1733827842131,-500.0,0.00010995,2]
[344839399,1733827842140,-338.61094335,0.00010995,2]
[344839400,1733827842150,-500.0,0.00010995,2]
[344839401,1733827842159,-500.0,0.00010995,2]
[344839402,1733827842169,-500.0,0.00010995,2]
[344839403,1733827842178,-500.0,0.00010995,2]
[344839404,1733827842187,-500.0,0.00010995,2]
[344839405,1733827842196,-500.0,0.00010995,2]
[344839406,1733827842206,-500.0,0.00010995,2]
[344839407,1733827842216,-500.0,0.00010995,2]
[344839408,1733827842226,-500.0,0.00010995,2]
[344839409,1733827842236,-390.88513545,0.00010995,2]
[344839410,1733827842245,-500.0,0.00010995,2]
[344839411,1733827842255,-500.0,0.00010995,2]
[344839412,1733827842265,-554.88,0.00010995,2]
[344839413,1733827842274,-500.0,0.00010995,2]
[344839414,1733827842284,-500.0,0.00010995,2]
[344839415,1733827842293,-547.19579533,0.00010995,2]
[344839416,1733827842303,-486.09862984,0.00010995,2]
[344839417,1733827842313,-1572.85,0.00010995,2]
[344839418,1733827842323,-1572.85,0.00010995,2]
[344839419,1733827842332,-1572.85,0.00010995,2]
[344839420,1733827842342,-1572.85,0.00010995,2]
[344839421,1733827842351,-1572.85,0.00010995,2]
[344839422,1733827842360,-1572.85,0.00010995,2]
[344839423,1733827842369,-1572.85,0.00010995,2]
[344839424,1733827842379,-1572.85,0.00010995,2]
[344839425,1733827842388,-500.0,0.00010995,2]
[344839426,1733827842397,-1572.85,0.00010995,2]
[344839427,1733827842407,-500.0,0.00010995,2]
[344839428,1733827842416,-1572.85,0.00010995,2]
[344839429,1733827842426,-500.0,0.00010995,2]
[344839430,1733827842435,-1572.85,0.00010995,2]
[344839431,1733827842445,-500.0,0.00010995,2]
[344839432,1733827842459,-1572.85,0.00010995,2]
[344839433,1733827842469,-500.0,0.00010995,2]
[344839434,1733827842478,-1572.85,0.00010995,2]
[344839435,1733827842487,-1572.85,0.00010995,2]
[344839436,1733827842497,-500.0,0.00010995,2]
[344839437,1733827842506,-1572.85,0.00010995,2]
[344839438,1733827842516,-500.0,0.00010995,2]
[344839439,1733827842525,-1572.85,0.00010995,2]
[344839440,1733827842535,-1572.85,0.00010995,2]
[344839441,1733827842548,-500.0,0.00010995,2]
[344839442,1733827842557,-1572.85,0.00010995,2]
[344839443,1733827842567,-500.0,0.00010995,2]
[344839444,1733827842576,-1572.85,0.00010995,2]
[344839445,1733827842587,-1572.85,0.00010995,2]
[344839446,1733827842596,-1572.85,0.00010995,2]
[344839447,1733827842606,-500.0,0.00010995,2]
[344839448,1733827842793,-1572.85,0.00010995,2]
[344839449,1733827842804,-1572.86946071,0.00010995,2]
[344839450,1733827842815,-500.0,0.00010995,2]
[344839451,1733827842825,-437.30279274,0.00010995,2]
[344839452,1733827842834,-500.0,0.00010995,2]
[344839453,1733827842844,-500.0,0.00010995,2]
[344839454,1733827842854,-500.0,0.00010995,2]
[344839455,1733827842863,-500.0,0.00010995,2]
[344839456,1733827842872,-500.0,0.00010995,2]
[344839457,1733827842882,-500.0,0.00010995,2]
[344839458,1733827842892,-500.0,0.00010995,2]
[344839459,1733827842902,-500.0,0.00010995,2]
[344839460,1733827842911,-500.0,0.00010995,2]
[344839461,1733827842921,-500.0,0.00010995,2]
[344839462,1733827842930,-500.0,0.00010995,2]
[344839463,1733827842940,-500.0,0.00010995,2]
[344839464,1733827842950,-500.0,0.00010995,2]
[344839465,1733827842960,-500.0,0.00010995,2]
[344839466,1733827842970,-500.0,0.00010995,2]
[344839467,1733827842979,-500.0,0.00010995,2]
[344839468,1733827842988,-500.0,0.00010995,2]
[344839469,1733827842997,-459.35715184,0.00010995,2]
[344839470,1733827843006,-500.0,0.00010995,2]
[344839471,1733827843015,-500.0,0.00010995,2]
[344839472,1733827843025,-500.0,0.00010995,2]
[344839473,1733827843035,-500.0,0.00010995,2]
[344839474,1733827843045,-500.0,0.00010995,2]
[344839475,1733827843055,-500.0,0.00010995,2]
[344839476,1733827843065,-500.0,0.00010995,2]
[344839477,1733827843074,-463.01,0.00010995,2]
[344839478,1733827843083,-709.12,0.00010995,2]
[344839479,1733827843093,-709.12,0.00010995,2]
[344839480,1733827843103,-709.12,0.00010995,2]
[344839481,1733827843112,-709.12,0.00010995,2]
[344839482,1733827843122,-709.12,0.00010995,2]
[344839483,1733827843134,-709.12,0.00010995,2]
[344839484,1733827843144,-709.12,0.00010995,2]
[344839485,1733827843154,-709.12,0.00010995,2]
[344839486,1733827843164,-500.0,0.00010995,2]
[344839487,1733827843174,-709.12,0.00010995,2]
[344839488,1733827843186,-709.12,0.00010995,2]
[344839489,1733827843196,-709.12,0.00010995,2]
[344839490,1733827843208,-709.12,0.00010995,2]
[344839491,1733827843218,-709.12,0.00010995,2]
[344839493,1733827843228,-709.12,0.00010995,2]
[344839495,1733827843238,-709.12,0.00010995,2]
[344839497,1733827843247,-709.12,0.00010995,2]
[344839499,1733827843257,-709.12,0.00010995,2]
[344839501,1733827843266,-709.12,0.00010995,2]
[344839503,1733827843275,-709.12,0.00010995,2]
[344839505,1733827843284,-709.12,0.00010995,2]
[344839506,1733827843293,-709.12,0.00010995,2]
[344839507,1733827843302,-709.12,0.00010995,2]
[344839508,1733827843311,-709.29177205,0.00010995,2]
[344839509,1733827843322,-648.75278865,0.00010995,2]
[344839510,1733827843330,-500.0,0.00010995,2]
[344839512,1733827843339,-500.0,0.00010995,2]
[344839514,1733827843348,-500.0,0.00010995,2]
[344839516,1733827843358,-500.0,0.00010995,2]
[344839518,1733827843369,-500.0,0.00010995,2]
[344839519,1733827843378,-500.0,0.00010995,2]
[344839521,1733827843388,-500.0,0.00010995,2]
[344839523,1733827843398,-500.0,0.00010995,2]
[344839524,1733827843408,-500.0,0.00010995,2]
[344839525,1733827843418,-500.0,0.00010995,2]
[344839526,1733827843428,-500.0,0.00010995,2]
[344839527,1733827843437,-500.0,0.00010995,2]
[344839528,1733827843447,-500.0,0.00010995,2]
[344839529,1733827843457,-500.0,0.00010995,2]
[344839530,1733827843467,-500.0,0.00010995,2]
[344839531,1733827843476,-500.0,0.00010995,2]
[344839532,1733827843486,-500.0,0.00010995,2]
[344839533,1733827843495,-500.0,0.00010995,2]
[344839534,1733827843504,-500.0,0.00010995,2]
[344839535,1733827843514,-500.0,0.00010995,2]
[344839536,1733827843523,-181.2,0.00010995,2]
[344839537,1733827843533,-500.0,0.00010995,2]
[344839538,1733827843546,-500.0,0.00010995,2]
[344839539,1733827843556,-500.0,0.00010995,2]
[344839540,1733827843566,-500.0,0.00010995,2]
[344839541,1733827843576,-500.0,0.00010995,2]
[344839542,1733827843587,-500.0,0.00010995,2]
[344839543,1733827843597,-500.0,0.00010995,2]
[344839544,1733827843606,-500.0,0.00010995,2]
[344839545,1733827843616,-500.0,0.00010995,2]
[344839546,1733827843626,-500.0,0.00010995,2]
[344839547,1733827843636,-500.0,0.00010995,2]
[344839548,1733827843646,-500.0,0.00010995,2]
[344839549,1733827843655,-641.79,0.00010995,2]
[344839550,1733827843664,-500.0,0.00010995,2]
[344839551,1733827843674,-500.0,0.00010995,2]
[344839552,1733827843683,-571.99518245,0.00010995,2]
[344839553,1733827843692,-500.0,0.00010995,2]
[344839554,1733827843703,-500.0,0.00010995,2]
[344839555,1733827843713,-500.0,0.00010995,2]
[344839556,1733827843723,-7500.0,0.00010995,2]
[344839557,1733827843733,-500.0,0.00010995,2]
[344839558,1733827843743,-7500.0,0.00010995,2]
[344839559,1733827843753,-500.0,0.00010995,2]
[344839560,1733827843762,-7500.0,0.00010995,2]
[344839561,1733827843772,-500.0,0.00010995,2]
[344839562,1733827843782,-7500.0,0.00010995,2]
[344839563,1733827843792,-344.13536344,0.00010995,2]
[344839564,1733827843802,-7500.0,0.00010995,2]
[344839565,1733827843812,-7500.0,0.00010995,2]
[344839566,1733827843821,-7500.0,0.00010995,2]
[344839567,1733827843831,-7500.0,0.00010995,2]
[344839568,1733827843842,-2828.23504144,0.00010995,2]
[344839569,1733827843851,-524.53,0.00010995,2]
[344839570,1733827843861,-500.0,0.00010995,2]
[344839571,1733827843871,-500.0,0.00010995,2]
[344839572,1733827843880,-500.0,0.00010995,2]
[344839573,1733827843890,-500.0,0.00010995,2]
[344839574,1733827843900,-583.2,0.00010995,2]
[344839575,1733827843910,-500.0,0.00010995,2]
[344839576,1733827843919,-500.0,0.00010995,2]
[344839577,1733827843929,-500.0,0.00010995,2]
[344839578,1733827843939,-500.0,0.00010995,2]
[344839579,1733827843950,-500.0,0.00010995,2]
[344839580,1733827843960,-500.0,0.00010995,2]
[344839581,1733827843970,-32116.09552436,0.00010995,2]
[344839582,1733827843979,-24087.07164327,0.00010995,2]
[344839583,1733827843989,-582.85262745,0.00010995,2]
[344839584,1733827843998,-7392.37243692,0.00010996,2]
[344839585,1733827844008,-1234.90865488,0.00010996,2]
[344839586,1733827844019,-7883.27216907,0.00010996,2]
[344839587,1733827844029,-500.0,0.00010996,2]
[344839588,1733827844038,-500.0,0.00010996,2]
[344839589,1733827844048,-506.95583931,0.00010996,2]
[344839590,1733827844057,-500.0,0.00010996,2]
[344839591,1733827844068,-500.0,0.00010996,2]
[344839592,1733827844077,-500.0,0.00010996,2]
[344839593,1733827844087,-500.0,0.00010996,2]
[344839594,1733827844097,-500.0,0.00010996,2]
[344839595,1733827844106,-500.0,0.00010996,2]
[344839597,1733827844116,-500.0,0.00010996,2]
[344839599,1733827844126,-647.69382681,0.00010996,2]
[344839600,1733827844136,-500.0,0.00010996,2]
[344839601,1733827844146,-500.0,0.00010996,2]
[344839602,1733827844155,-500.0,0.00010996,2]
[344839603,1733827844164,-500.0,0.00010996,2]
[344839604,1733827844173,-500.0,0.00010996,2]
[344839605,1733827844183,-500.0,0.00010996,2]
[344839606,1733827844193,-500.0,0.00010996,2]
[344839607,1733827844204,-500.0,0.00010996,2]
[344839608,1733827844213,-500.0,0.00010996,2]
[344839609,1733827844223,-500.0,0.00010996,2]
[344839610,1733827844233,-500.0,0.00010996,2]
[344839611,1733827844243,-500.0,0.00010996,2]
[344839612,1733827844253,-500.0,0.00010996,2]
[344839613,1733827844262,-500.0,0.00010996,2]
[344839614,1733827844272,-840.26,0.00010996,2]
[344839615,1733827844283,-500.0,0.00010996,2]
[344839616,1733827844293,-500.0,0.00010996,2]
[344839617,1733827844303,-500.0,0.00010996,2]
[344839618,1733827844313,-500.0,0.00010996,2]
[344839619,1733827844324,-500.0,0.00010996,2]
[344839620,1733827844335,-500.0,0.00010996,2]
[344839621,1733827844345,-151.0,0.00010996,2]
[344839622,1733827844355,-500.0,0.00010996,2]
[344839623,1733827844365,-500.0,0.00010996,2]
[344839624,1733827844375,-500.0,0.00010996,2]
[344839625,1733827844384,-500.0,0.00010996,2]
[344839626,1733827844394,-500.0,0.00010996,2]
[344839627,1733827844403,-500.0,0.00010996,2]
[344839628,1733827844413,-500.0,0.00010996,2]
[344839629,1733827844422,-500.0,0.00010996,2]
[344839630,1733827844432,-500.0,0.00010996,2]
[344839631,1733827844441,-501.6026763,0.00010996,2]
[344839632,1733827844451,-500.0,0.00010996,2]
[344839633,1733827844461,-500.0,0.00010996,2]
[344839634,1733827844470,-500.0,0.00010996,2]
[344839635,1733827844480,-714.06,0.00010996,2]
[344839636,1733827844489,-500.0,0.00010996,2]
[344839637,1733827844499,-500.0,0.00010996,2]
[344839638,1733827844508,-500.0,0.00010996,2]
[344839639,1733827844517,-765.5,0.00010996,2]
[344839640,1733827844526,-500.0,0.00010996,2]
[344839641,1733827844536,-500.0,0.00010996,2]
[344839642,1733827844551,-506.83749578,0.00010996,2]
[344839643,1733827844560,-500.0,0.00010996,2]
[344839644,1733827844569,-500.0,0.00010996,2]
[344839645,1733827844580,-500.0,0.00010996,2]
[344839646,1733827844589,-500.0,0.00010996,2]
[344839647,1733827844598,-500.0,0.00010996,2]
[344839648,1733827844608,-500.0,0.00010996,2]
[344839649,1733827844618,-500.0,0.00010996,2]
[344839650,1733827844627,-500.0,0.00010996,2]
[344839651,1733827844637,-500.0,0.00010996,2]
[344839652,1733827844646,-500.0,0.00010996,2]
[344839653,1733827844655,-500.0,0.00010996,2]
[344839654,1733827844664,-500.0,0.00010996,2]
[344839655,1733827844674,-500.0,0.00010996,2]
[344839656,1733827844683,-500.0,0.00010996,2]
[344839657,1733827844693,-500.0,0.00010996,2]
[344839658,1733827844704,-500.0,0.00010996,2]
[344839659,1733827844714,-500.0,0.00010996,2]
[344839660,1733827844723,-500.0,0.00010996,2]
[344839661,1733827844733,-500.0,0.00010996,2]
[344839662,1733827844742,-397.0789237,0.00010996,2]
[344839663,1733827844752,-568.11,0.00010996,2]
[344839664,1733827844761,-500.0,0.00010996,2]
[344839665,1733827844770,-500.0,0.00010996,2]
[344839666,1733827844780,-500.0,0.00010996,2]
[344839667,1733827844790,-195.69994274,0.00010996,2]